bitfinex-derivatives/quotes_BTCF0:USTF0_20250313
["timestamp","ask_amount","ask_price","bid_price","bid_amount"]
[1741862356625,0.21504184,83199.0,83198.0,0.13268171]
[1741862357522,0.21504184,83199.0,83198.0,0.15259559]
[1741862357718,0.001,83199.0,83198.0,0.15259559]
[1741862358726,0.001,83199.0,83198.0,0.15290731]
[1741862359319,0.0363,83199.0,83198.0,0.15290731]
[1741862359623,0.001,83199.0,83198.0,0.16628496]
[1741862362520,0.001,83199.0,83198.0,0.16609827]
[1741862362718,0.0352,83199.0,83198.0,0.14608845]
[1741862362927,0.001,83199.0,83198.0,0.14608845]
[1741862363224,0.001,83199.0,83198.0,0.1327108]
[1741862364533,0.0341,83199.0,83198.0,0.1327108]
[1741862364829,0.0341,83199.0,83198.0,0.15259034]
[1741862365531,0.0341,83199.0,83198.0,0.16596859]
[1741862368425,0.0341,83199.0,83198.0,0.20076859]
[1741862368623,0.0688,83199.0,83198.0,0.20076859]
[1741862369134,0.0688,83199.0,83198.0,0.23636859]
[1741862369332,0.0341,83199.0,83198.0,0.23636859]
[1741862369528,0.0341,83199.0,83198.0,0.48636859]
[1741862369729,0.0341,83199.0,83198.0,0.23636859]
[1741862370331,0.1543033,83199.0,83198.0,0.23636859]
[1741862370530,0.2235033,83199.0,83198.0,0.23636859]
[1741862370735,0.1033,83199.0,83198.0,0.23636859]
[1741862371636,0.0679,83199.0,83198.0,0.23636859]
[1741862372026,0.0341,83199.0,83198.0,0.46636859]
[1741862372230,0.15496,83212.0,83198.0,0.32616379]
[1741862372437,0.0600801,83229.0,83228.0,0.06008]
[1741862372638,0.3951695,83229.0,83228.0,0.06008]
[1741862372831,0.41047562,83229.0,83228.0,0.06008]
[1741862373140,0.1201701,83222.0,83221.0,0.0600841]
[1741862373344,0.1201701,83222.0,83221.0,0.07292856]
[1741862374039,0.1905701,83222.0,83221.0,0.07292856]
[1741862374836,0.1915701,83222.0,83221.0,0.01284446]
[1741862376143,0.1201816,83214.0,83213.0,0.00018031]
[1741862376333,0.2749816,83214.0,83213.0,0.01295711]
[1741862376728,0.1201975,83203.0,83202.0,0.1802939]
[1741862376933,0.1201975,83203.0,83202.0,0.2003215]
[1741862377131,0.1201975,83203.0,83202.0,0.0200276]
[1741862377332,0.13554257,83203.0,83202.0,0.03350367]
[1741862377532,0.29034257,83203.0,83202.0,0.01347607]
[1741862377732,0.35994257,83203.0,83202.0,0.01347607]
[1741862378840,0.1202091,83195.0,83190.0,0.2155681]
[1741862379231,0.0669,83197.0,83190.0,0.2155681]
[1741862379431,0.1871067,83197.0,83196.0,0.1202077]
[1741862379835,0.1871067,83197.0,83196.0,0.14066258]
[1741862380448,0.1871067,83197.0,83196.0,0.02045488]
[1741862381248,0.1871067,83197.0,83196.0,0.14066258]
[1741862381749,0.1871067,83197.0,83196.0,0.02045488]
[1741862382239,0.1871067,83197.0,83196.0,0.14066258]
[1741862382435,0.1871067,83197.0,83196.0,0.02045488]
[1741862383137,0.1871067,83197.0,83196.0,0.14066258]
[1741862385644,0.1871067,83197.0,83196.0,0.14105455]
[1741862385944,0.0669,83197.0,83196.0,0.14105455]
[1741862386249,0.0669,83197.0,83196.0,0.17445455]
[1741862386445,0.01534507,83203.0,83202.0,0.120199]
[1741862386645,0.33401782,83205.0,83204.0,0.1201961]
[1741862386846,0.33401782,83205.0,83204.0,0.16805914]
[1741862387244,0.33401782,83205.0,83204.0,0.20355914]
[1741862387445,0.34923912,83205.0,83204.0,0.26176147]
[1741862387945,0.1699813,83205.0,83204.0,0.23531993]
[1741862388139,0.1699813,83205.0,83204.0,0.25166228]
[1741862388648,0.1699813,83205.0,83204.0,0.26505012]
[1741862388949,0.2901759,83205.0,83204.0,0.24870777]
[1741862389153,0.3242759,83205.0,83204.0,0.22590544]
[1741862389348,0.2040813,83205.0,83204.0,0.22477327]
[1741862389748,0.3242759,83205.0,83204.0,0.22477327]
[1741862390743,0.2040813,83205.0,83204.0,0.22477327]
[1741862391347,0.3242759,83205.0,83204.0,0.22477327]
[1741862391647,0.3242759,83205.0,83204.0,0.23861622]
[1741862392348,0.3242759,83205.0,83204.0,0.23796663]
[1741862393646,0.1695159,83205.0,83204.0,0.23796663]
[1741862396556,0.1695159,83205.0,83204.0,0.23861242]
[1741862397146,0.1695159,83205.0,83204.0,0.23855244]
[1741862400346,0.1695159,83205.0,83204.0,0.04745634]
[1741862400546,0.2045159,83205.0,83204.0,0.04745634]
[1741862400952,0.2045159,83205.0,83204.0,0.02677109]
[1741862401852,0.2045159,83205.0,83204.0,0.01384295]
[1741862402054,0.1202019,83200.0,83199.0,0.1202022]
[1741862402253,0.1803028,83200.0,83199.0,0.01196814]
[1741862402453,0.2495028,83200.0,83199.0,0.13217144]
[1741862402851,0.2495028,83200.0,83199.0,0.02537246]
[1741862403257,0.1293009,83200.0,83199.0,0.18067576]
[1741862403849,0.0932009,83200.0,83199.0,0.18067576]
[1741862404045,0.0331,83200.0,83199.0,0.18067576]
[1741862404252,0.0152213,83205.0,83204.0,0.1201961]
[1741862404459,0.1546,83206.0,83205.0,0.1201946]
[1741862404653,0.2747932,83206.0,83205.0,0.20126274]
[1741862404963,0.28908217,83206.0,83205.0,0.20126274]
[1741862405154,0.16888897,83206.0,83205.0,0.21466706]
[1741862405747,0.1546,83206.0,83205.0,0.21466706]
[1741862405959,0.17943813,83211.0,83210.0,0.1201874]
[1741862406151,0.17943813,83211.0,83210.0,0.13215554]
[1741862406361,0.17943813,83211.0,83210.0,0.40215554]
[1741862406855,0.17943813,83211.0,83210.0,0.45316277]
[1741862407060,0.17943813,83211.0,83210.0,0.46602355]
[1741862407257,0.17943813,83211.0,83210.0,0.44967466]
[1741862407655,0.17943813,83211.0,83210.0,0.48377466]
[1741862407863,0.00018031,83211.0,83210.0,0.23699078]
[1741862408055,0.00018031,83211.0,83210.0,0.25131444]
[1741862409454,0.00018031,83211.0,83210.0,0.26765965]
[1741862409656,0.00018031,83211.0,83210.0,0.25131444]
[1741862410054,0.00018031,83211.0,83210.0,0.23699078]
[1741862411360,0.00018031,83211.0,83210.0,0.50153556]
[1741862411556,0.120157,83232.0,83215.0,0.06009]
[1741862411862,0.00064,83236.0,83235.0,0.1201513]
[1741862412069,0.15452,83236.0,83235.0,0.16623424]
[1741862412255,0.15452,83236.0,83235.0,0.22630974]
[1741862412748,0.00887066,83240.0,83235.0,0.04608294]
[1741862412954,0.105,83242.0,83235.0,0.04608294]
[1741862412955,0.0347,83242.0,83241.0,0.1201427]
[1741862413151,0.0600639,83252.0,83241.0,0.15336486]
[1741862413360,0.0363,83246.0,83245.0,0.1201369]
[1741862413651,0.1201311,83249.0,83248.0,0.1201326]
[1741862413852,0.2496077,83254.0,83253.0,0.1201254]
[1741862414055,0.2843077,83254.0,83253.0,0.19306339]
[1741862414255,0.4044316,83254.0,83253.0,0.16621473]
[1741862414654,0.4044316,83254.0,83253.0,0.17961905]
[1741862414856,0.4044316,83254.0,83253.0,0.05949365]
[1741862415353,0.4044316,83254.0,83253.0,0.17961905]
[1741862415548,0.4044316,83254.0,83253.0,0.18113705]
[1741862415751,0.4384316,83254.0,83253.0,0.18113705]
[1741862416355,0.4384316,83254.0,83253.0,0.03472312]
[1741862416656,0.4384316,83254.0,83227.0,0.0008]
[1741862416657,0.12016,83229.0,83228.0,0.63520486]
[1741862416964,0.060078,83232.0,83228.0,0.50161888]
[1741862417158,0.154158,83231.0,83230.0,0.1201571]
[1741862417356,0.154158,83231.0,83230.0,0.14152182]
[1741862418366,0.190858,83231.0,83230.0,0.14152182]
[1741862418560,0.190858,83231.0,83230.0,0.02136472]
[1741862418754,0.190858,83231.0,83228.0,0.36009806]
[1741862418755,0.12016,83229.0,83228.0,0.36009806]
[1741862418960,0.12016,83229.0,83228.0,0.48025946]
[1741862419460,0.12016,83229.0,83228.0,0.36009806]
[1741862419661,0.12016,83229.0,83228.0,0.48025946]
[1741862419861,0.12016,83229.0,83228.0,0.1201614]
[1741862421875,0.1201658,83225.0,83224.0,0.0345]
[1741862422061,0.1201658,83225.0,83222.0,0.0001802]
[1741862422062,0.1201687,83223.0,83222.0,0.0001802]
[1741862422762,0.1916687,83223.0,83222.0,0.1203503]
[1741862423366,0.1916687,83223.0,83222.0,0.0001802]
[1741862424762,0.1201946,83205.0,83204.0,0.21500912]
[1741862424965,0.2745946,83205.0,83204.0,0.21500912]
[1741862425765,0.2745946,83205.0,83189.0,0.036]
[1741862425766,0.1202004,83201.0,83189.0,0.036]
[1741862425960,0.1202004,83201.0,83196.0,0.0001802]
[1741862426275,0.0600993,83203.0,83196.0,0.0001802]
[1741862426276,0.1202062,83197.0,83196.0,0.0001802]
[1741862426973,0.1202091,83195.0,83194.0,0.32102496]
[1741862427177,0.1202178,83189.0,83188.0,0.43291767]
[1741862427467,0.1202178,83189.0,83188.0,0.43211767]
[1741862427468,0.2726178,83189.0,83188.0,0.43211767]
[1741862428169,0.1202337,83178.0,83177.0,0.0008]
[1741862428371,0.1202366,83176.0,83175.0,0.2413542]
[1741862428567,0.2746366,83176.0,83175.0,0.2404742]
[1741862428771,0.2736366,83176.0,83175.0,0.2404742]
[1741862428967,0.3446366,83176.0,83175.0,0.2404742]
[1741862429169,0.3446366,83176.0,83175.0,0.1202365]
[1741862429974,0.1202423,83172.0,83171.0,0.00180333]
[1741862430173,0.1162423,83172.0,83171.0,0.12204713]
[1741862430671,0.1162423,83172.0,83171.0,0.00180333]
[1741862431577,0.1122423,83172.0,83171.0,0.00180333]
[1741862431875,0.1803935,83161.0,83160.0,0.1202518]
[1741862432180,0.3347935,83161.0,83160.0,0.2405039]
[1741862432773,0.1202669,83155.0,83154.0,0.1202668]
[1741862432975,0.0718,83160.0,83154.0,0.0601329]
[1741862433170,0.2521959,83160.0,83159.0,0.1202611]
[1741862433775,0.1319309,83160.0,83159.0,0.1202611]
[1741862434580,0.1309309,83160.0,83159.0,0.1202611]
[1741862434977,0.1544,83161.0,83159.0,0.1202611]
[1741862435179,0.01436912,83162.0,83160.0,0.1202597]
[1741862435376,0.1544,83161.0,83160.0,0.1202597]
[1741862436681,0.1544,83161.0,83160.0,0.1551597]
[1741862437886,0.1544,83161.0,83160.0,0.1561597]
[1741862438675,0.2746582,83161.0,83160.0,0.1561597]
[1741862439076,0.3096582,83161.0,83160.0,0.1920597]
[1741862439975,0.3096582,83161.0,83160.0,0.0718]
[1741862440171,0.3443582,83161.0,83160.0,0.1920597]
[1741862440895,0.3443582,83161.0,83160.0,0.0369]
[1741862441085,0.1202698,83153.0,83152.0,0.12045041]
[1741862441278,0.06013,83160.0,83159.0,0.1202597]
[1741862441478,0.1803911,83160.0,83159.0,0.1202597]
[1741862441680,0.2150911,83160.0,83159.0,0.1202597]
[1741862442076,0.09483,83160.0,83159.0,0.1202597]
[1741862442277,0.0713,83160.0,83159.0,0.1202597]
[1741862442483,0.1915597,83160.0,83159.0,0.1202597]
[1741862443287,0.01436177,83162.0,83161.0,0.1202582]
[1741862443492,0.2746568,83162.0,83161.0,0.1202582]
[1741862444682,0.2746568,83162.0,83161.0,0.1572582]
[1741862444892,0.1550535,83165.0,83164.0,0.1202539]
[1741862445079,0.1202568,83163.0,83162.0,0.1202559]
[1741862445388,0.1202568,83163.0,83162.0,0.1581559]
[1741862445688,0.28932598,83163.0,83162.0,0.1944559]
[1741862445887,0.32672598,83163.0,83162.0,0.1944559]
[1741862446086,0.36402598,83163.0,83162.0,0.1944559]
[1741862446481,0.36402598,83163.0,83162.0,0.0742]
[1741862446681,0.36402598,83163.0,83162.0,0.1944568]
[1741862446986,0.36402598,83163.0,83162.0,0.0742]
[1741862447988,0.0601331,83156.0,83139.0,0.00092]
[1741862448294,0.1202698,83154.0,83153.0,0.13251937]
[1741862448484,0.1202698,83154.0,83153.0,0.16991937]
[1741862448688,0.1583698,83154.0,83153.0,0.16991937]
[1741862449382,0.1948698,83154.0,83153.0,0.16991937]
[1741862449988,0.1948698,83154.0,83153.0,0.16997808]
[1741862450178,0.0381,83154.0,83153.0,0.16997808]
[1741862450581,0.1583684,83154.0,83153.0,0.16997808]
[1741862450987,0.1583684,83154.0,83153.0,0.17097808]
[1741862451188,0.1583684,83154.0,83153.0,0.20717808]
[1741862451885,0.1583684,83154.0,83153.0,0.05070968]
[1741862452287,0.1583684,83154.0,83153.0,0.03313432]
[1741862452478,0.1583684,83154.0,83149.0,0.0348]
[1741862452479,0.1202698,83153.0,83149.0,0.0348]
[1741862452681,0.1202742,83150.0,83149.0,0.0348]
[1741862453192,0.1202742,83150.0,83149.0,0.1550756]
[1741862454092,0.1202742,83150.0,83149.0,0.0348]
[1741862454291,0.1202742,83150.0,83149.0,0.05466424]
[1741862454888,0.1931742,83150.0,83149.0,0.01986424]
[1741862455293,0.1202814,83145.0,83144.0,0.1576825]
[1741862455487,0.1202857,83142.0,83141.0,0.12046591]
[1741862455688,0.1202857,83142.0,83141.0,0.15786591]
[1741862455904,0.1931857,83142.0,83141.0,0.15786591]
[1741862456085,0.0729,83142.0,83141.0,0.19456591]
[1741862456295,0.08747185,83142.0,83141.0,0.19456591]
[1741862456904,0.24179185,83142.0,83141.0,0.19456591]
[1741862457501,0.36207755,83142.0,83141.0,0.19456591]
[1741862457797,0.36207755,83142.0,83141.0,0.03758031]
[1741862458190,0.36307755,83142.0,83141.0,0.03758031]
[1741862458393,0.36307755,83142.0,83141.0,0.12046751]
[1741862458896,0.36307755,83142.0,83141.0,0.15506751]
[1741862459987,0.24279185,83142.0,83141.0,0.15506751]
[1741862460191,0.24279185,83142.0,83141.0,0.19046751]
[1741862460588,0.36307755,83142.0,83141.0,0.19046751]
[1741862461788,0.36307755,83142.0,83141.0,0.00018031]
[1741862462997,0.1203031,83130.0,83129.0,0.18225823]
[1741862463196,0.2745831,83130.0,83129.0,0.24240943]
[1741862463994,0.3461831,83130.0,83129.0,0.24240943]
[1741862464599,0.3461831,83130.0,83129.0,0.00180423]
[1741862464999,0.3461831,83130.0,83129.0,0.12210873]
[1741862465499,0.3461831,83130.0,83129.0,0.13407433]
[1741862466301,0.3461831,83130.0,83129.0,0.16897433]
[1741862466604,0.3461831,83130.0,83129.0,0.16898344]
[1741862466810,0.3461831,83130.0,83129.0,0.20558344]
[1741862468188,0.3461831,83130.0,83129.0,0.16898344]
[1741862468394,0.3461831,83130.0,83129.0,0.12210873]
[1741862468593,0.3461831,83130.0,83129.0,0.00180423]
[1741862468790,0.1203147,83122.0,83116.0,0.0366]
[1741862468990,0.1203147,83122.0,83116.0,0.1583232]
[1741862469202,0.1203147,83122.0,83120.0,0.1203161]
[1741862469403,0.1546147,83122.0,83121.0,0.12043703]
[1741862469597,0.1919147,83122.0,83121.0,0.12043703]
[1741862470297,0.1919147,83122.0,83121.0,0.01205984]
[1741862470698,0.1919147,83122.0,83121.0,0.13237594]
[1741862470993,0.1919147,83122.0,83121.0,0.01205984]
[1741862471506,0.1919147,83122.0,83121.0,0.00012093]
[1741862471701,0.1919147,83122.0,83105.0,0.0365]
[1741862471702,0.1203335,83109.0,83105.0,0.0365]
[1741862471909,0.2745735,83109.0,83106.0,0.0371]
[1741862472602,0.2745735,83109.0,83103.0,0.49308857]
[1741862472798,0.2745735,83109.0,83107.0,0.1203356]
[1741862473102,0.2745735,83109.0,83105.0,0.1203384]
[1741862473302,0.2745735,83109.0,83106.0,0.1203373]
[1741862473493,0.2745735,83109.0,83105.0,0.1203384]
[1741862473693,0.2745735,83109.0,83103.0,0.55325917]
[1741862473898,0.28879264,83109.0,83103.0,0.43291767]
[1741862474501,0.1203407,83104.0,83103.0,0.0008]
[1741862474700,0.1203596,83093.0,83092.0,0.1203567]
[1741862474896,0.2745596,83093.0,83092.0,0.240713]
[1741862475205,0.2745596,83093.0,83092.0,0.1203563]
[1741862475795,0.3487596,83093.0,83092.0,0.1203563]
[1741862475992,0.2284,83093.0,83091.0,0.0344]
[1741862476191,0.1203581,83092.0,83091.0,0.0721]
[1741862476391,0.1203581,83092.0,83091.0,0.1924596]
[1741862476597,0.1945581,83092.0,83091.0,0.1924596]
[1741862477004,0.0742,83092.0,83091.0,0.1924596]
[1741862477198,0.0368,83092.0,83091.0,0.1924596]
[1741862477395,0.17141641,83092.0,83091.0,0.1924596]
[1741862478901,0.05105831,83092.0,83091.0,0.1924596]
[1741862479297,0.17141641,83092.0,83091.0,0.1924596]
[1741862479701,0.20811641,83092.0,83091.0,0.1547596]
[1741862480120,0.20811641,83092.0,83091.0,0.1919596]
[1741862482009,0.36231641,83092.0,83091.0,0.1919596]
[1741862483203,0.05105831,83092.0,83091.0,0.1919596]
[1741862483401,0.20521831,83092.0,83091.0,0.1919596]
[1741862483594,0.01425831,83092.0,83091.0,0.1919596]
[1741862483801,0.15416,83093.0,83091.0,0.1919596]
[1741862484108,0.01425204,83096.0,83093.0,0.1203567]
[1741862484410,0.15416,83097.0,83096.0,0.1203523]
[1741862484604,0.2745057,83101.0,83100.0,0.1203465]
[1741862485013,0.3244744,83101.0,83100.0,0.1203465]
[1741862485200,0.3594744,83101.0,83100.0,0.1203465]
[1741862485506,0.2391287,83101.0,83096.0,0.0368]
[1741862485705,0.1805577,83087.0,83086.0,0.1805398]
[1741862485912,0.2407234,83093.0,83092.0,0.1203581]
[1741862486101,0.18071483,83095.0,83094.0,0.1203552]
[1741862486301,0.18071483,83095.0,83094.0,0.1571552]
[1741862486808,0.12053423,83095.0,83094.0,0.1571552]
[1741862487809,0.15743423,83095.0,83094.0,0.1571552]
[1741862488714,0.19403423,83095.0,83094.0,0.0368]
[1741862488902,0.1203625,83089.0,83088.0,0.1805412]
[1741862489511,0.1572625,83089.0,83088.0,0.1805412]
[1741862490913,0.1572625,83089.0,83088.0,0.0601813]
[1741862491113,0.1923625,83089.0,83088.0,0.0601813]
[1741862491600,0.072,83089.0,83065.0,0.28761716]
[1741862491803,0.1203675,83087.0,83086.0,0.0601827]
[1741862492001,0.0369,83089.0,83086.0,0.0957827]
[1741862492202,0.2174471,83089.0,83088.0,0.1203639]
[1741862493704,0.1203653,83087.0,83086.0,0.2161483]
[1741862494313,0.1578653,83087.0,83086.0,0.2161483]
[1741862495402,0.1578653,83087.0,83086.0,0.0957827]
[1741862495713,0.120374,83081.0,83080.0,0.1805582]
[1741862496309,0.157874,83081.0,83080.0,0.1805582]
[1741862497306,0.001,83081.0,83080.0,0.1805629]
[1741862497510,0.001,83081.0,83080.0,0.4205629]
[1741862498105,0.0382,83098.0,83094.0,0.1203552]
[1741862498412,0.0382,83098.0,83094.0,0.13227861]
[1741862498413,0.12053423,83095.0,83094.0,0.13227861]
[1741862499306,0.15873423,83095.0,83094.0,0.13227861]
[1741862499506,0.15873423,83095.0,83094.0,0.1566552]
[1741862500216,0.1203552,83094.0,83093.0,0.0377]
[1741862500411,0.0601794,83092.0,83086.0,0.0376]
[1741862500613,0.1203653,83087.0,83086.0,0.2765303]
[1741862500816,0.120374,83082.0,83081.0,0.1203739]
[1741862501012,0.120374,83082.0,83081.0,0.1561739]
[1741862501207,0.120374,83082.0,83081.0,0.1937739]
[1741862501208,0.119374,83082.0,83081.0,0.1937739]
[1741862501518,0.191874,83082.0,83081.0,0.1937739]
[1741862502512,0.189874,83082.0,83081.0,0.1937739]
[1741862502817,0.189874,83082.0,83081.0,0.1203739]
[1741862503418,0.189874,83082.0,83081.0,0.1930739]
[1741862504016,0.1928726,83082.0,83081.0,0.1930739]
[1741862505908,0.0725,83082.0,83081.0,0.1930739]
[1741862506511,0.0725,83082.0,83081.0,0.1203739]
[1741862506512,0.1928726,83082.0,83081.0,0.1203739]
[1741862507520,0.1928726,83082.0,83081.0,0.1967739]
[1741862509923,0.1928726,83082.0,83081.0,0.1597739]
[1741862513815,0.1928726,83082.0,83081.0,0.1977739]
[1741862514327,0.0384,83082.0,83081.0,0.1977739]
[1741862514618,0.14238012,83087.0,83086.0,0.1203668]
[1741862514826,0.14238012,83087.0,83086.0,0.2354668]
[1741862515124,0.26274542,83087.0,83086.0,0.2354668]
[1741862515623,0.14238012,83087.0,83086.0,0.2354668]
[1741862515824,0.26274542,83087.0,83086.0,0.2354668]
[1741862516021,0.14238012,83087.0,83086.0,0.2354668]
[1741862516322,0.14238012,83087.0,83086.0,0.2454668]
[1741862516922,1e-08,83092.0,83086.0,0.3954668]
[1741862517119,4e-08,83095.0,83089.0,0.0601805]
[1741862517313,4e-08,83095.0,83094.0,0.1203552]
[1741862517519,4e-08,83095.0,83094.0,0.3903552]
[1741862517820,4e-08,83095.0,83094.0,0.5403552]
[1741862518013,4e-08,83095.0,83094.0,0.3903552]
[1741862520221,0.12035384,83095.0,83094.0,0.3903552]
[1741862520609,4e-08,83095.0,83094.0,0.1203552]
[1741862521016,0.03870004,83095.0,83094.0,0.1203552]
[1741862521221,0.19815384,83095.0,83094.0,0.1203552]
[1741862522417,0.07780004,83095.0,83094.0,0.1203552]
[1741862522717,0.03870004,83095.0,83094.0,0.1203552]
[1741862523321,4e-08,83095.0,83094.0,0.4103552]
[1741862525326,4e-08,83095.0,83094.0,0.5603552]
[1741862526337,0.0515535,83109.0,83094.0,0.8303449]
[1741862526519,0.0383,83123.0,83121.0,0.1203161]
[1741862527029,0.25032638,83122.0,83121.0,0.1203161]
[1741862527425,0.25032638,83122.0,83121.0,0.1968161]
[1741862527816,0.0361,83122.0,83121.0,0.1968161]
[1741862528224,0.0774,83122.0,83121.0,0.1968161]
[1741862529128,0.0413,83122.0,83121.0,0.1968161]
[1741862529524,0.1616147,83122.0,83121.0,0.1968161]
[1741862529721,0.1616147,83122.0,83121.0,0.1588161]
[1741862530325,0.2007147,83122.0,83121.0,0.1588161]
[1741862533235,0.1203262,83114.0,83103.0,0.28761716]
[1741862533538,0.1203262,83114.0,83104.0,0.1203395]
[1741862533829,0.1203407,83104.0,83103.0,0.28673716]
[1741862534033,0.2739407,83104.0,83103.0,0.28673716]
[1741862534630,0.1203451,83101.0,83100.0,0.1203458]
[1741862535431,0.13379492,83101.0,83100.0,0.1203458]
[1741862535636,0.01344982,83101.0,83100.0,0.1203458]
[1741862535936,0.1203451,83101.0,83100.0,0.1203458]
[1741862536129,0.001,83101.0,83098.0,0.06197888]
[1741862536329,0.1213474,83101.0,83100.0,0.1203465]
[1741862537123,0.1602474,83101.0,83100.0,0.1562465]
[1741862537924,0.1602474,83101.0,83100.0,0.1203465]
[1741862538137,0.120348,83099.0,83098.0,0.12215378]
[1741862539427,0.120348,83099.0,83098.0,0.1203489]
[1741862540135,0.1805343,83095.0,83094.0,0.1203544]
[1741862540638,0.2195343,83095.0,83094.0,0.1203544]
[1741862541137,0.0991776,83095.0,83094.0,0.1203544]
[1741862544042,0.039,83095.0,83094.0,0.1203544]
[1741862544729,0.039,83095.0,83094.0,0.1967544]
[1741862545841,0.1593538,83095.0,83094.0,0.1967544]
[1741862546045,0.1593538,83095.0,83094.0,0.1203544]
[1741862546847,0.039,83095.0,83094.0,0.1203544]
[1741862547045,0.039,83095.0,83094.0,0.1563544]
[1741862548351,0.1593538,83095.0,83094.0,0.1563544]
[1741862548742,0.039,83095.0,83094.0,0.1563544]
[1741862549244,0.1970538,83095.0,83094.0,0.1563544]
[1741862549550,0.1970538,83095.0,83094.0,0.1203544]
[1741862550351,0.1593538,83095.0,83094.0,0.1203544]
[1741862550549,0.1593538,83095.0,83094.0,0.1566544]
[1741862551746,0.039,83095.0,83094.0,0.1566544]
[1741862552744,0.039,83095.0,83094.0,0.1934544]
[1741862553052,0.32661077,83105.0,83104.0,0.1203407]
[1741862553350,0.24617077,83105.0,83104.0,0.1203407]
[1741862554450,0.12783007,83105.0,83101.0,0.0601718]
[1741862554654,0.1805212,83101.0,83100.0,0.1203452]
[1741862554854,0.1203523,83096.0,83095.0,0.1805281]
[1741862555254,0.1956523,83096.0,83095.0,0.1805281]
[1741862558960,0.0753,83096.0,83095.0,0.1805281]
[1741862559861,0.1956523,83096.0,83095.0,0.1805281]
[1741862563168,0.0601816,83089.0,83085.0,0.25210471]
[1741862563362,0.1203668,83087.0,83086.0,0.1575653]
[1741862563768,0.1957668,83087.0,83086.0,0.1575653]
[1741862564070,0.20932183,83087.0,83086.0,0.1575653]
[1741862564960,0.08895503,83087.0,83086.0,0.1942653]
[1741862565359,0.20932033,83087.0,83086.0,0.1942653]
[1741862565960,0.05285503,83087.0,83086.0,0.1942653]
[1741862566166,0.01355503,83087.0,83086.0,0.1942653]
[1741862566356,0.0601791,83092.0,83091.0,0.1203581]
[1741862566556,0.21984,83092.0,83091.0,0.1203581]
[1741862569064,0.23326014,83092.0,83091.0,0.1203581]
[1741862569963,0.07359924,83092.0,83091.0,0.1203581]
[1741862570168,0.05242014,83092.0,83091.0,0.1203581]
[1741862571167,0.09392014,83092.0,83091.0,0.1203581]
[1741862571760,0.21427824,83092.0,83091.0,0.1203581]
[1741862573780,0.1805451,83089.0,83088.0,0.1203629]
[1741862574773,0.1203653,83087.0,83086.0,0.40710276]
[1741862574971,0.1203653,83087.0,83086.0,0.52746846]
[1741862575173,0.2005653,83087.0,83086.0,0.52746846]
[1741862576078,0.2005653,83087.0,83086.0,0.40710276]
[1741862577581,0.2005653,83087.0,83086.0,0.1203656]
[1741862579770,0.1203697,83084.0,83083.0,0.21647295]
[1741862580176,0.1984697,83084.0,83083.0,0.21647295]
[1741862581176,0.0781,83084.0,83078.0,0.1011891]
[1741862581365,0.1203769,83079.0,83078.0,0.2817502]
[1741862581778,0.1984769,83079.0,83078.0,0.3196502]
[1741862582381,0.1984769,83079.0,83078.0,0.1992771]
[1741862582884,0.0781,83079.0,83078.0,0.1992771]
[1741862583068,0.0378,83079.0,83078.0,0.2406771]
[1741862584387,0.001,83079.0,83078.0,0.2406771]
[1741862585269,0.15728242,83092.0,83091.0,0.1203596]
[1741862585579,0.27764052,83092.0,83091.0,0.1203596]
[1741862586981,0.27764052,83092.0,83091.0,0.13231125]
[1741862587181,0.27764052,83092.0,83091.0,0.14579068]
[1741862588079,0.27764052,83092.0,83091.0,0.13383903]
[1741862588488,0.27764052,83092.0,83091.0,0.1203596]
[1741862589685,0.13439892,83092.0,83091.0,0.1203596]
[1741862590679,0.12053864,83092.0,83091.0,0.1203596]
[1741862592778,0.20183864,83092.0,83091.0,0.1203596]
[1741862593485,0.04008054,83092.0,83091.0,0.1203596]
[1741862593783,4e-08,83092.0,83091.0,0.1203596]
[1741862594178,4e-08,83092.0,83091.0,0.1323254]
[1741862596089,0.12035814,83092.0,83091.0,0.1203596]
[1741862596991,0.20215814,83092.0,83091.0,0.1621596]
[1741862597283,0.20215814,83092.0,83091.0,0.1661596]
[1741862597484,0.20215814,83092.0,83091.0,0.1243596]
[1741862597988,0.20415814,83092.0,83091.0,0.1203596]
[1741862598585,0.20415814,83092.0,83091.0,0.1621596]
[1741862599587,0.08380004,83092.0,83091.0,0.1621596]
[1741862599789,0.08380004,83092.0,83091.0,0.2022596]
[1741862600092,0.08380004,83092.0,83091.0,0.2406596]
[1741862600690,0.20415814,83092.0,83091.0,0.2406596]
[1741862605692,0.08380004,83092.0,83091.0,0.2406596]
[1741862606095,0.20415814,83092.0,83091.0,0.2406596]
[1741862607289,0.20415814,83092.0,83091.0,0.25259802]
[1741862609401,0.08380004,83092.0,83091.0,0.25259802]
[1741862609601,0.20415814,83092.0,83091.0,0.25259802]
[1741862609789,0.08380004,83092.0,83091.0,0.25259802]
[1741862610099,0.08380004,83092.0,83091.0,0.26574115]
[1741862610593,0.04290004,83092.0,83091.0,0.26574115]
[1741862610798,0.1432416,83100.0,83091.0,0.36538155]
[1741862610993,0.2020495,83098.0,83097.0,0.1203509]
[1741862611194,0.2020495,83098.0,83097.0,0.13228932]
[1741862611390,0.2020495,83098.0,83097.0,0.13260983]
[1741862611597,0.2020495,83098.0,83097.0,0.22597289]
[1741862613503,0.002,83098.0,83097.0,0.22597289]
[1741862613702,0.1223494,83098.0,83097.0,0.22597289]
[1741862613906,0.005,83098.0,83097.0,0.22597289]
[1741862614295,0.0457,83098.0,83097.0,0.22597289]
[1741862615107,0.005,83098.0,83097.0,0.22597289]
[1741862616193,0.005,83098.0,83097.0,0.45597289]
[1741862616401,0.1432416,83105.0,83104.0,0.1203407]
[1741862616594,0.1432416,83105.0,83104.0,0.13259963]
[1741862616789,0.1432416,83105.0,83104.0,0.36259963]
[1741862617204,0.1432416,83105.0,83104.0,0.39617421]
[1741862617394,0.1432416,83105.0,83104.0,0.47277421]
[1741862618001,0.1482416,83105.0,83104.0,0.24277421]
[1741862618200,0.1482416,83105.0,83104.0,0.49277421]
[1741862618607,0.1492416,83105.0,83104.0,0.49277421]
[1741862619804,0.0389,83117.0,83116.0,0.1203234]
[1741862619997,0.0389,83117.0,83116.0,0.15269385]
[1741862620408,0.17868937,83124.0,83116.0,0.26237045]
[1741862620706,0.17868937,83124.0,83123.0,0.1203132]
[1741862620908,0.17868937,83124.0,83123.0,0.15268365]
[1741862621113,0.17868937,83124.0,83123.0,0.19258365]
[1741862621305,0.17868937,83124.0,83123.0,0.22847505]
[1741862621705,0.18468937,83124.0,83123.0,0.46847505]
[1741862622611,0.18468937,83124.0,83123.0,0.48181083]
[1741862623414,0.006,83124.0,83123.0,0.48181083]
[1741862623601,0.00018054,83132.0,83131.0,0.1203016]
[1741862623801,0.03998054,83132.0,83131.0,0.15267205]
[1741862624008,0.16028074,83132.0,83131.0,0.15267205]
[1741862624208,0.19858074,83132.0,83131.0,0.18856345]
[1741862624404,0.07828054,83132.0,83131.0,0.18965282]
[1741862624817,0.19858074,83132.0,83131.0,0.18965282]